fUSD/lending_fUSD_20240322
["ID","MTS","AMOUNT","RATE_DAILY","PERIOD"]
[320078346,1711139457942,-724.51,0.00022191,2]
[320078347,1711139457957,-500.0,0.00022191,2]
[320078348,1711139457972,-500.0,0.00022191,2]
[320078349,1711139457988,-500.0,0.00022191,2]
[320078350,1711139458004,-1089.71,0.00022191,2]
[320078351,1711139458022,-500.0,0.00022191,2]
[320078352,1711139458038,-500.0,0.00022191,2]
[320078353,1711139458054,-500.0,0.00022191,2]
[320078354,1711139458070,-619.99,0.00022191,2]
[320078355,1711139458086,-504.73052598,0.00022191,2]
[320078356,1711139458103,-223.30900872,0.00022191,2]
[320078357,1711139458118,-500.0,0.00022191,2]
[320078358,1711139458134,-500.0,0.00022191,2]
[320078359,1711139458148,-507.40584465,0.00022191,2]
[320078360,1711139458163,-500.0,0.00022191,2]
[320078361,1711139458178,-582.36567066,0.00022191,2]
[320078362,1711139458194,-500.0,0.00022191,2]
[320078363,1711139458210,-577.97,0.00022191,2]
[320078364,1711139458225,-500.0,0.00022191,2]
[320078365,1711139458240,-500.0,0.00022191,2]
[320078366,1711139458255,-500.0,0.00022191,2]
[320078367,1711139458270,-500.0,0.00022191,2]
[320078368,1711139458285,-500.0,0.00022191,2]
[320078369,1711139458300,-500.0,0.00022191,2]
[320078370,1711139458315,-983.01,0.00022191,2]
[320078371,1711139458332,-500.0,0.00022191,2]
[320078372,1711139458347,-500.0,0.00022191,2]
[320078373,1711139458360,-500.0,0.00022191,2]
[320078374,1711139458376,-500.0,0.00022191,2]
[320078375,1711139458388,-501.37476751,0.00022191,2]
[320078376,1711139458397,-500.0,0.00022191,2]
[320078377,1711139458406,-500.0,0.00022191,2]
[320078378,1711139458416,-500.0,0.00022191,2]
[320078379,1711139458425,-500.0,0.00022191,2]
[320078380,1711139458434,-1046.61,0.00022191,2]
[320078381,1711139458444,-559.4,0.00022191,2]
[320078382,1711139458454,-500.0,0.00022191,2]
[320078383,1711139458781,-500.0,0.00022191,2]
[320078384,1711139458812,-540.85,0.00022191,2]
[320078385,1711139458829,-500.0,0.00022191,2]
[320078386,1711139458840,-435.39037733,0.00022191,2]
[320078387,1711139458849,-500.0,0.00022191,2]
[320078388,1711139458858,-500.0,0.00022191,2]
[320078389,1711139458869,-570.98,0.00022191,2]
[320078390,1711139458878,-240.70260818,0.00022191,2]
[320078391,1711139458887,-500.0,0.00022191,2]
[320078392,1711139458896,-502.36353616,0.00022191,2]
[320078393,1711139458905,-500.0,0.00022191,2]
[320078394,1711139458915,-500.0,0.00022191,2]
[320078395,1711139458924,-500.0,0.00022191,2]
[320078396,1711139458933,-500.0,0.00022191,2]
[320078397,1711139458943,-500.0,0.00022191,2]
[320078398,1711139458952,-500.0,0.00022191,2]
[320078399,1711139458962,-500.0,0.00022191,2]
[320078400,1711139458972,-500.0,0.00022191,2]
[320078401,1711139458982,-500.0,0.00022191,2]
[320078402,1711139458992,-500.0,0.00022191,2]
[320078403,1711139459001,-636.42282647,0.00022191,2]
[320078404,1711139459014,-500.0,0.00022191,2]
[320078405,1711139459024,-1413.63,0.00022191,2]
[320078406,1711139459034,-500.0,0.00022191,2]
[320078407,1711139459044,-500.0,0.00022191,2]
[320078408,1711139459053,-500.0,0.00022191,2]
[320078409,1711139459062,-500.66470248,0.00022191,2]
[320078410,1711139459071,-503.51232151,0.00022191,2]
[320078411,1711139459082,-500.0,0.00022191,2]
[320078412,1711139459091,-500.0,0.00022191,2]
[320078413,1711139459101,-500.0,0.00022191,2]
[320078414,1711139459110,-809.35,0.00022191,2]
[320078415,1711139459119,-500.0,0.00022191,2]
[320078416,1711139459128,-505.5885723,0.00022191,2]
[320078417,1711139459137,-500.0,0.00022191,2]
[320078418,1711139459146,-500.0,0.00022191,2]
[320078419,1711139459155,-500.0,0.00022191,2]
[320078420,1711139459164,-500.0,0.00022191,2]
[320078421,1711139459174,-500.0,0.00022191,2]
[320078422,1711139459183,-815.96,0.00022191,2]
[320078423,1711139459193,-902.85,0.00022191,2]
[320078424,1711139459203,-500.0,0.00022191,2]
[320078425,1711139459212,-500.0,0.00022191,2]
[320078426,1711139459221,-500.0,0.00022191,2]
[320078427,1711139459232,-506.00827757,0.00022191,2]
[320078428,1711139459241,-506.1862346,0.00022191,2]
[320078429,1711139459250,-574.72,0.00022191,2]
[320078430,1711139459260,-500.0,0.00022191,2]
[320078431,1711139459269,-1070.73,0.00022191,2]
[320078432,1711139459278,-505.53129236,0.00022191,2]
[320078433,1711139459288,-500.0,0.00022191,2]
[320078434,1711139459297,-500.0,0.00022191,2]
[320078435,1711139459306,-500.0,0.00022191,2]
[320078436,1711139459315,-1351.72,0.00022191,2]
[320078437,1711139459325,-500.0,0.00022191,2]
[320078438,1711139459336,-500.0,0.00022191,2]
[320078439,1711139459346,-500.0,0.00022191,2]
[320078440,1711139459355,-500.0,0.00022191,2]
[320078441,1711139459364,-500.0,0.00022191,2]
[320078442,1711139459373,-500.0,0.00022191,2]
[320078443,1711139459382,-500.0,0.00022191,2]
[320078444,1711139459391,-500.0,0.00022191,2]
[320078445,1711139459400,-1281.59,0.00022191,2]
[320078446,1711139459410,-500.0,0.00022191,2]
[320078447,1711139459419,-303.39256603,0.00022191,2]
[320078448,1711139459428,-813.3,0.00022191,2]
[320078449,1711139459437,-500.0,0.00022191,2]
[320078450,1711139459446,-580.61,0.00022191,2]
[320078451,1711139459455,-500.0,0.00022191,2]
[320078452,1711139459464,-500.0,0.00022191,2]
[320078453,1711139459474,-500.0,0.00022191,2]
[320078454,1711139459483,-500.0,0.00022191,2]
[320078455,1711139459492,-500.0,0.00022191,2]
[320078456,1711139459501,-501.11545899,0.00022191,2]
[320078457,1711139459510,-500.0,0.00022191,2]
[320078458,1711139459519,-614.57,0.00022191,2]
[320078459,1711139459529,-500.0,0.00022191,2]
[320078460,1711139459538,-446.66346438,0.00022191,2]
[320078461,1711139459547,-500.0,0.00022191,2]
[320078462,1711139459556,-500.0,0.00022191,2]
[320078463,1711139459565,-500.0,0.00022191,2]
[320078464,1711139459574,-500.0,0.00022191,2]
[320078465,1711139459585,-500.0,0.00022191,2]
[320078466,1711139459594,-500.0,0.00022191,2]
[320078467,1711139459603,-500.0,0.00022191,2]
[320078468,1711139459612,-500.0,0.00022191,2]
[320078469,1711139459621,-500.0,0.00022191,2]
[320078470,1711139459630,-500.0,0.00022191,2]
[320078471,1711139459640,-500.0,0.00022191,2]
[320078472,1711139459650,-509.98634808,0.00022191,2]
[320078473,1711139459660,-500.0,0.00022191,2]
[320078474,1711139459669,-949.23,0.00022191,2]
[320078475,1711139459678,-185.78911443,0.00022191,2]
[320078476,1711139459688,-510.9474972,0.00022191,2]
[320078477,1711139459697,-627.84,0.00022191,2]
[320078478,1711139459707,-500.0,0.00022191,2]
[320078479,1711139459716,-504.76885312,0.00022191,2]
[320078480,1711139459725,-1493.41,0.00022191,2]
[320078481,1711139459735,-615.59,0.00022191,2]
[320078482,1711139459745,-499.78099856,0.00022191,2]
[320078483,1711139459754,-801.32,0.00022191,2]
[320078484,1711139459764,-504.72646938,0.00022191,2]
[320078485,1711139459773,-500.0,0.00022191,2]
[320078486,1711139459783,-507.89581012,0.00022191,2]
[320078487,1711139459792,-504.93264055,0.00022191,2]
[320078488,1711139459802,-500.0,0.00022191,2]
[320078489,1711139459811,-500.0,0.00022191,2]
[320078490,1711139459821,-500.0,0.00022191,2]
[320078491,1711139459833,-567.86,0.00022191,2]
[320078492,1711139459841,-500.0,0.00022191,2]
[320078493,1711139459850,-500.0,0.00022191,2]
[320078494,1711139459859,-3733.65,0.00022191,2]
[320078495,1711139459868,-506.40879231,0.00022191,2]
[320078496,1711139459879,-557.81,0.00022191,2]
[320078497,1711139459888,-500.0,0.00022191,2]
[320078498,1711139459897,-500.0,0.00022191,2]
[320078499,1711139459906,-500.0,0.00022191,2]
[320078500,1711139459916,-529.46,0.00022191,2]
[320078501,1711139459927,-500.0,0.00022191,2]
[320078502,1711139459936,-894.73,0.00022191,2]
[320078503,1711139459946,-500.0,0.00022191,2]
[320078504,1711139459955,-504.61027452,0.00022191,2]
[320078505,1711139459966,-500.0,0.00022191,2]
[320078506,1711139459975,-501.44895024,0.00022191,2]
[320078507,1711139459984,-355.47070726,0.00022191,2]
[320078508,1711139459994,-543.84,0.00022191,2]
[320078509,1711139460003,-500.0,0.00022191,2]
[320078510,1711139460017,-500.0,0.00022191,2]
[320078511,1711139460028,-500.0,0.00022191,2]
[320078512,1711139460037,-500.0,0.00022191,2]
[320078513,1711139460046,-1201.49,0.00022191,2]
[320078514,1711139460057,-1170.53,0.00022191,2]
[320078515,1711139460066,-500.0,0.00022191,2]
[320078516,1711139460076,-1341.91,0.00022191,2]
[320078517,1711139460087,-572.97,0.00022191,2]
[320078518,1711139460097,-500.0,0.00022191,2]
[320078519,1711139460107,-522.27934812,0.00022191,2]
[320078520,1711139460117,-500.0,0.00022191,2]
[320078521,1711139460126,-500.0,0.00022191,2]
[320078522,1711139460135,-500.0,0.00022191,2]
[320078523,1711139460145,-500.0,0.00022191,2]
[320078524,1711139460154,-500.0,0.00022191,2]
[320078525,1711139460165,-500.0,0.00022191,2]
[320078526,1711139460177,-500.0,0.00022191,2]
[320078527,1711139460186,-942.48,0.00022191,2]
[320078528,1711139460196,-500.0,0.00022191,2]
[320078529,1711139460205,-500.0,0.00022191,2]
[320078530,1711139460214,-501.71059576,0.00022191,2]
[320078531,1711139460223,-500.0,0.00022191,2]
[320078532,1711139460232,-642.43,0.00022191,2]
[320078533,1711139460241,-500.0,0.00022191,2]
[320078534,1711139460252,-500.0,0.00022191,2]
[320078535,1711139460261,-500.0,0.00022191,2]
[320078536,1711139460270,-505.8,0.00022191,2]
[320078537,1711139460280,-500.0,0.00022191,2]
[320078538,1711139460289,-670.45,0.00022191,2]
[320078539,1711139460299,-500.0,0.00022191,2]
[320078540,1711139460308,-479.44254976,0.00022191,2]
[320078541,1711139460317,-500.0,0.00022191,2]
[320078542,1711139460326,-500.0,0.00022191,2]
[320078543,1711139460338,-937.62,0.00022191,2]
[320078544,1711139460348,-503.20728614,0.00022191,2]
[320078545,1711139460357,-500.0,0.00022191,2]
[320078546,1711139460366,-500.0,0.00022191,2]
[320078547,1711139460375,-500.0,0.00022191,2]
[320078548,1711139460385,-500.0,0.00022191,2]
[320078549,1711139460394,-500.0,0.00022191,2]
[320078550,1711139460403,-1105.88,0.00022191,2]
[320078551,1711139460413,-500.0,0.00022191,2]
[320078552,1711139460422,-500.0,0.00022191,2]
[320078553,1711139460432,-500.0,0.00022191,2]
[320078554,1711139460441,-1032.11,0.00022191,2]
[320078555,1711139460450,-501.63832214,0.00022191,2]
[320078556,1711139460460,-561.12,0.00022191,2]
[320078557,1711139460469,-500.0,0.00022191,2]
[320078558,1711139460479,-150.0,0.00022191,2]
[320078559,1711139460488,-500.0,0.00022191,2]
[320078560,1711139460498,-500.0,0.00022191,2]
[320078561,1711139460507,-500.0,0.00022191,2]
[320078562,1711139460516,-500.0,0.00022191,2]
[320078563,1711139460526,-504.81409951,0.00022191,2]
[320078564,1711139460535,-509.72975444,0.00022191,2]
[320078565,1711139460545,-506.0710087,0.00022191,2]
[320078566,1711139460554,-1201.63,0.00022191,2]
[320078567,1711139460564,-536.84056225,0.00022191,2]
[320078568,1711139460573,-500.0,0.00022191,2]
[320078569,1711139460585,-573.69,0.00022191,2]
[320078570,1711139460594,-500.0,0.00022191,2]
[320078571,1711139460604,-770.75,0.00022191,2]
[320078572,1711139460613,-500.0,0.00022191,2]
[320078573,1711139460622,-500.0,0.00022191,2]
[320078574,1711139460632,-500.0,0.00022191,2]
[320078575,1711139460641,-500.0,0.00022191,2]
[320078576,1711139460650,-500.0,0.00022191,2]
[320078577,1711139460660,-500.0,0.00022191,2]
[320078578,1711139460669,-774.72,0.00022191,2]
[320078579,1711139460678,-500.0,0.00022191,2]
[320078580,1711139460687,-992.52,0.00022191,2]
[320078581,1711139460697,-500.0,0.00022191,2]
[320078582,1711139460706,-504.31730166,0.00022191,2]
[320078583,1711139460715,-500.0,0.00022191,2]
[320078584,1711139460724,-500.0,0.00022191,2]
[320078585,1711139460734,-504.98823678,0.00022191,2]
[320078586,1711139460743,-500.0,0.00022191,2]
[320078587,1711139460752,-500.0,0.00022191,2]
[320078588,1711139460761,-500.0,0.00022191,2]
[320078589,1711139460770,-500.0,0.00022191,2]
[320078590,1711139460779,-500.0,0.00022191,2]
[320078591,1711139460789,-500.0,0.00022191,2]
[320078592,1711139460798,-500.0,0.00022191,2]
[320078593,1711139460808,-500.0,0.00022191,2]
[320078594,1711139460817,-1230.1,0.00022191,2]
[320078595,1711139460827,-503.00025874,0.00022191,2]
[320078596,1711139460838,-500.0,0.00022191,2]
[320078597,1711139460847,-500.0,0.00022191,2]
[320078598,1711139460857,-500.0,0.00022191,2]
[320078599,1711139460866,-500.0,0.00022191,2]
[320078600,1711139460875,-249.48545932,0.00022191,2]
[320078601,1711139460884,-500.0,0.00022191,2]
[320078602,1711139460893,-500.0,0.00022191,2]
[320078603,1711139460902,-504.3411681,0.00022191,2]
[320078604,1711139460911,-500.0,0.00022191,2]
[320078605,1711139460920,-1102.7,0.00022191,2]
[320078606,1711139460929,-512.54475764,0.00022191,2]
[320078607,1711139460939,-500.0,0.00022191,2]
[320078608,1711139460948,-500.0,0.00022191,2]
[320078609,1711139460958,-500.0,0.00022191,2]
[320078610,1711139460967,-1891.14,0.00022191,2]
[320078611,1711139460976,-500.0,0.00022191,2]
[320078612,1711139460985,-500.0,0.00022191,2]
[320078613,1711139460996,-500.0,0.00022191,2]
[320078614,1711139461006,-500.0,0.00022191,2]
[320078615,1711139461018,-696.85,0.00022191,2]
[320078616,1711139461028,-500.0,0.00022191,2]
[320078617,1711139461037,-500.0,0.00022191,2]
[320078618,1711139461046,-500.0,0.00022191,2]
[320078619,1711139461058,-652.07,0.00022191,2]
[320078620,1711139461067,-500.0,0.00022191,2]
[320078621,1711139461076,-1773.86,0.00022191,2]
[320078622,1711139461088,-1527.53,0.00022191,2]
[320078623,1711139461097,-711.46,0.00022191,2]
[320078624,1711139461107,-500.0,0.00022191,2]
[320078625,1711139461117,-500.0,0.00022191,2]
[320078626,1711139461126,-500.0,0.00022191,2]
[320078627,1711139461135,-500.0,0.00022191,2]
[320078628,1711139461145,-500.0,0.00022191,2]
[320078629,1711139461154,-500.0,0.00022191,2]
[320078630,1711139461163,-1111.84,0.00022191,2]
[320078631,1711139461172,-500.0,0.00022191,2]
[320078632,1711139461182,-2794.22,0.00022191,2]
[320078633,1711139461191,-500.0,0.00022191,2]
[320078634,1711139461199,-500.0,0.00022191,2]
[320078635,1711139461208,-500.49594865,0.00022191,2]
[320078636,1711139461217,-500.0,0.00022191,2]
[320078637,1711139461227,-552.94,0.00022191,2]
[320078638,1711139461236,-500.0,0.00022191,2]
[320078639,1711139461244,-1929.58,0.00022191,2]
[320078640,1711139461253,-500.0,0.00022191,2]
[320078641,1711139461263,-527.62,0.00022191,2]
[320078642,1711139461272,-501.30243319,0.00022191,2]
[320078643,1711139461281,-2166.9,0.00022191,2]
[320078644,1711139461290,-500.0,0.00022191,2]
[320078645,1711139461299,-500.0,0.00022191,2]
[320078646,1711139461309,-501.31089506,0.00022191,2]
[320078647,1711139461318,-500.0,0.00022191,2]
[320078648,1711139461328,-500.0,0.00022191,2]
[320078649,1711139461339,-500.0,0.00022191,2]
[320078650,1711139461349,-500.0,0.00022191,2]
[320078651,1711139461358,-500.0,0.00022191,2]
[320078652,1711139461366,-500.0,0.00022191,2]
[320078653,1711139461375,-1026.31,0.00022191,2]
[320078654,1711139461384,-501.0140874,0.00022191,2]
[320078655,1711139461394,-500.0,0.00022191,2]
[320078656,1711139461403,-284.3153555,0.00022191,2]
[320078657,1711139461413,-500.0,0.00022191,2]
[320078658,1711139461422,-500.0,0.00022191,2]
[320078659,1711139461431,-500.0,0.00022191,2]
[320078660,1711139461440,-1739.72,0.00022191,2]
[320078661,1711139461449,-2313.18,0.00022191,2]
[320078662,1711139461459,-629.04,0.00022191,2]
[320078663,1711139461468,-500.0,0.00022191,2]
[320078664,1711139461477,-1527.01,0.00022191,2]
[320078665,1711139461487,-500.0,0.00022191,2]
[320078666,1711139461496,-500.0,0.00022191,2]
[320078667,1711139461505,-500.0,0.00022191,2]
[320078668,1711139461515,-500.0,0.00022191,2]
[320078669,1711139461524,-605.0,0.00022191,2]
[320078670,1711139461534,-500.0,0.00022191,2]
[320078671,1711139461543,-500.0,0.00022191,2]
[320078672,1711139461552,-500.0,0.00022191,2]
[320078673,1711139461562,-844.65,0.00022191,2]
[320078674,1711139461572,-500.0,0.00022191,2]
[320078675,1711139461582,-500.0,0.00022191,2]
[320078676,1711139461592,-500.0,0.00022191,2]
[320078677,1711139461602,-981.95,0.00022191,2]
[320078678,1711139461611,-500.0,0.00022191,2]
[320078679,1711139461622,-1895.08,0.00022191,2]
[320078680,1711139461632,-2368.09,0.00022191,2]
[320078681,1711139461641,-1718.65,0.00022191,2]
[320078682,1711139461651,-500.0,0.00022191,2]
[320078683,1711139461662,-1645.55,0.00022191,2]
[320078684,1711139461671,-500.0,0.00022191,2]
[320078685,1711139461680,-500.0,0.00022191,2]
[320078686,1711139461689,-500.0,0.00022191,2]
[320078687,1711139461698,-500.0,0.00022191,2]
[320078688,1711139461707,-500.0,0.00022191,2]
[320078689,1711139461716,-1142.35,0.00022191,2]
[320078690,1711139461726,-698.25,0.00022191,2]
[320078691,1711139461735,-500.0,0.00022191,2]
[320078692,1711139461744,-700.79,0.00022191,2]
[320078693,1711139461754,-500.0,0.00022191,2]
[320078694,1711139461763,-500.0,0.00022191,2]
[320078695,1711139461772,-500.0,0.00022191,2]
[320078696,1711139461782,-1668.78,0.00022191,2]
[320078697,1711139461791,-538.17,0.00022191,2]
[320078698,1711139461800,-2867.24,0.00022191,2]
[320078699,1711139461809,-500.0,0.00022191,2]
[320078700,1711139461818,-500.0,0.00022191,2]
[320078701,1711139461827,-1138.3,0.00022191,2]
[320078702,1711139461838,-500.0,0.00022191,2]
[320078703,1711139461848,-500.0,0.00022191,2]
[320078704,1711139461857,-376.94027652,0.00022191,2]
[320078705,1711139461867,-500.0,0.00022191,2]
[320078706,1711139461876,-500.0,0.00022191,2]
[320078707,1711139461885,-1270.15,0.00022191,2]
[320078708,1711139461895,-500.0,0.00022191,2]
[320078709,1711139461905,-500.0,0.00022191,2]
[320078710,1711139461914,-888.79,0.00022191,2]
[320078711,1711139461924,-2124.07,0.00022191,2]
[320078712,1711139461934,-500.0,0.00022191,2]
[320078713,1711139461943,-2046.7,0.00022191,2]
[320078714,1711139461953,-500.0,0.00022191,2]
[320078715,1711139461963,-508.11124566,0.00022191,2]
[320078716,1711139461974,-576.86,0.00022191,2]
[320078717,1711139462170,-500.0,0.00022191,2]
[320078718,1711139462189,-500.0,0.00022191,2]
[320078719,1711139462199,-1456.38,0.00022191,2]
[320078720,1711139462210,-500.0,0.00022191,2]
[320078721,1711139462219,-500.0,0.00022191,2]
[320078722,1711139462229,-500.0,0.00022191,2]
[320078723,1711139462239,-727.24,0.00022191,2]
[320078724,1711139462248,-477.38773252,0.00022191,2]
[320078725,1711139462258,-2173.88,0.00022191,2]
[320078726,1711139462267,-500.0,0.00022191,2]
[320078727,1711139462277,-1862.3,0.00022191,2]
[320078728,1711139462286,-1791.12,0.00022191,2]
[320078729,1711139462295,-500.0,0.00022191,2]
[320078730,1711139462305,-504.84895353,0.00022191,2]
[320078731,1711139462316,-1086.13,0.00022191,2]
[320078732,1711139462325,-500.0,0.00022191,2]
[320078733,1711139462338,-500.0,0.00022191,2]
[320078734,1711139462349,-1189.91,0.00022191,2]
[320078735,1711139462360,-500.0,0.00022191,2]
[320078736,1711139462370,-500.0,0.00022191,2]
[320078737,1711139462380,-596.33,0.00022191,2]
[320078738,1711139462390,-500.0,0.00022191,2]
[320078739,1711139462399,-500.0,0.00022191,2]
[320078740,1711139462409,-500.0,0.00022191,2]
[320078741,1711139462419,-500.0,0.00022191,2]
[320078742,1711139462429,-1180.58,0.00022191,2]
[320078743,1711139462442,-500.0,0.00022191,2]
[320078744,1711139462452,-500.0,0.00022191,2]
[320078745,1711139462465,-1108.7,0.00022191,2]
[320078746,1711139462476,-500.0,0.00022191,2]
[320078747,1711139462486,-500.0,0.00022191,2]
[320078748,1711139462495,-500.0,0.00022191,2]
[320078749,1711139462506,-500.0,0.00022191,2]
[320078750,1711139462515,-500.0,0.00022191,2]
[320078751,1711139462525,-500.0,0.00022191,2]
[320078752,1711139462535,-1319.68,0.00022191,2]
[320078753,1711139462545,-530.62,0.00022191,2]
[320078754,1711139462555,-500.0,0.00022191,2]
[320078755,1711139462564,-543.21,0.00022191,2]
[320078756,1711139462574,-2055.39,0.00022191,2]
[320078757,1711139462584,-503.39197005,0.00022191,2]
[320078758,1711139462597,-500.0,0.00022191,2]
[320078759,1711139462607,-500.0,0.00022191,2]
[320078760,1711139462617,-809.11,0.00022191,2]
[320078761,1711139462627,-500.0,0.00022191,2]
[320078762,1711139462637,-1430.78,0.00022191,2]
[320078763,1711139462647,-500.0,0.00022191,2]
[320078764,1711139462656,-500.0,0.00022191,2]
[320078765,1711139462666,-500.0,0.00022191,2]
[320078766,1711139462675,-1274.19,0.00022191,2]
[320078767,1711139462684,-500.0,0.00022191,2]
[320078768,1711139462693,-2133.2,0.00022191,2]
[320078769,1711139462703,-500.0,0.00022191,2]
[320078770,1711139462711,-500.65,0.00022191,2]
[320078771,1711139462721,-500.0,0.00022191,2]
[320078772,1711139462730,-500.0,0.00022191,2]
[320078773,1711139462740,-2839.58,0.00022191,2]
[320078774,1711139462749,-500.0,0.00022191,2]
[320078775,1711139462760,-1649.54,0.00022191,2]
[320078776,1711139462770,-500.0,0.00022191,2]
[320078777,1711139462780,-1894.73,0.00022191,2]
[320078778,1711139462789,-500.0,0.00022191,2]
[320078779,1711139462799,-500.0,0.00022191,2]
[320078780,1711139462809,-500.0,0.00022191,2]
[320078781,1711139462819,-500.0,0.00022191,2]
[320078782,1711139462829,-500.0,0.00022191,2]
[320078783,1711139462842,-500.0,0.00022191,2]
[320078784,1711139462852,-500.0,0.00022191,2]
[320078785,1711139462862,-500.0,0.00022191,2]
[320078786,1711139462872,-500.0,0.00022191,2]
[320078787,1711139462881,-610.02,0.00022191,2]
[320078788,1711139462891,-500.0,0.00022191,2]
[320078789,1711139462900,-1512.42,0.00022191,2]
[320078790,1711139462910,-500.0,0.00022191,2]
[320078791,1711139462920,-500.0,0.00022191,2]
[320078792,1711139462929,-1761.42,0.00022191,2]
[320078793,1711139462939,-500.0,0.00022191,2]
[320078794,1711139462948,-1207.26,0.00022191,2]
[320078795,1711139462958,-500.0,0.00022191,2]
[320078796,1711139462967,-500.0,0.00022191,2]
[320078797,1711139462977,-2444.99,0.00022191,2]
[320078798,1711139462986,-500.0,0.00022191,2]
[320078799,1711139462996,-1180.89,0.00022191,2]
[320078800,1711139463006,-1095.11,0.00022191,2]
[320078801,1711139463019,-500.0,0.00022191,2]
[320078802,1711139463028,-915.86,0.00022191,2]
[320078803,1711139463038,-1736.25,0.00022191,2]
[320078804,1711139463047,-500.0,0.00022191,2]
[320078805,1711139463058,-1140.36,0.00022191,2]
[320078806,1711139463067,-887.55,0.00022191,2]
[320078807,1711139463076,-828.15,0.00022191,2]
[320078808,1711139463088,-640.06,0.00022191,2]
[320078809,1711139463097,-500.0,0.00022191,2]
[320078810,1711139463106,-500.0,0.00022191,2]
[320078811,1711139463116,-500.0,0.00022191,2]
[320078812,1711139463125,-2490.43,0.00022191,2]
[320078813,1711139463134,-2205.72,0.00022191,2]
[320078814,1711139463143,-500.0,0.00022191,2]
[320078815,1711139463153,-500.0,0.00022191,2]
[320078816,1711139463163,-500.0,0.00022191,2]
[320078817,1711139463173,-1097.71,0.00022191,2]
[320078818,1711139463183,-500.0,0.00022191,2]
[320078819,1711139463193,-500.0,0.00022191,2]
[320078820,1711139463203,-709.86,0.00022191,2]
[320078821,1711139463212,-500.0,0.00022191,2]
[320078822,1711139463222,-500.0,0.00022191,2]
[320078823,1711139463231,-500.0,0.00022191,2]
[320078824,1711139463241,-500.0,0.00022191,2]
[320078825,1711139463250,-830.59,0.00022191,2]
[320078826,1711139463260,-500.0,0.00022191,2]
[320078827,1711139463270,-1982.21,0.00022191,2]
[320078828,1711139463280,-500.0,0.00022191,2]
[320078829,1711139463289,-500.0,0.00022191,2]
[320078830,1711139463299,-500.0,0.00022191,2]
[320078831,1711139463309,-1130.16,0.00022191,2]
[320078832,1711139463318,-500.0,0.00022191,2]
[320078833,1711139463328,-500.0,0.00022191,2]
[320078834,1711139463343,-1554.38,0.00022191,2]
[320078835,1711139463353,-500.0,0.00022191,2]
[320078836,1711139463363,-743.47,0.00022191,2]
[320078837,1711139463373,-1035.85,0.00022191,2]
[320078838,1711139463383,-500.0,0.00022191,2]
[320078839,1711139463392,-842.49,0.00022191,2]
[320078840,1711139463402,-883.6,0.00022191,2]
[320078841,1711139463412,-500.0,0.00022191,2]
[320078842,1711139463422,-500.0,0.00022191,2]
[320078843,1711139463431,-1761.67,0.00022191,2]
[320078844,1711139463440,-500.0,0.00022191,2]
[320078845,1711139463450,-1708.65,0.00022191,2]